[Event "Late-Titled-Tuesday-Blitz-June-04-2024"]
[Site "Chess.com"]
[Date "2024.06.04"]
[Round "3"]
[White "AsaHoffmann"]
[Black "Squirlolz"]
[Result "1/2-1/2"]
[WhiteElo "2270"]
[BlackElo "2504"]
[TimeControl "180+1"]
[EndTime "14:28:28 PDT"]
[Termination "Game drawn - insufficient material"]

1. d4 {[%clk 0:02:57.4]} 1... c5 {[%clk 0:02:59.3]} 2. dxc5 {[%clk 0:02:53.6]}
2... g6 {[%clk 0:02:57.8]} 3. Nc3 {[%clk 0:02:51.6]} 3... Bg7 {[%clk 0:02:58]}
4. e4 {[%clk 0:02:50.3]} 4... Na6 {[%clk 0:02:58]} 5. Be3 {[%clk 0:02:49.6]}
5... b6 {[%clk 0:02:58.2]} 6. cxb6 {[%clk 0:02:46.2]} 6... axb6 {[%clk
0:02:59.1]} 7. Bc4 {[%clk 0:02:43.5]} 7... Nf6 {[%clk 0:02:58.9]} 8. e5 {[%clk
0:02:37.6]} 8... Nh5 {[%clk 0:02:42.9]} 9. Bxf7+ {[%clk 0:02:20.2]} 9... Kxf7
{[%clk 0:02:33.1]} 10. Qd5+ {[%clk 0:02:19]} 10... e6 {[%clk 0:02:25.3]} 11.
Qxa8 {[%clk 0:02:18.4]} 11... Bxe5 {[%clk 0:02:26.2]} 12. Nf3 {[%clk 0:02:12]}
12... Bf6 {[%clk 0:02:24.6]} 13. O-O-O {[%clk 0:02:07.5]} 13... Bxc3 {[%clk
0:02:15.9]} 14. bxc3 {[%clk 0:02:06.8]} 14... Qc7 {[%clk 0:02:16.8]} 15. Bd4
{[%clk 0:02:02.5]} 15... Re8 {[%clk 0:02:12.8]} 16. Qe4 {[%clk 0:01:56.1]} 16...
Bb7 {[%clk 0:02:10.2]} 17. Qh4 {[%clk 0:01:54.1]} 17... Bxf3 {[%clk 0:02:04.7]}
18. gxf3 {[%clk 0:01:53.3]} 18... Qc4 {[%clk 0:01:58]} 19. Kb1 {[%clk
0:01:46.7]} 19... Ra8 {[%clk 0:01:50.4]} 20. Qe4 {[%clk 0:01:40.8]} 20... Nc7
{[%clk 0:01:49.9]} 21. Be5 {[%clk 0:01:27.4]} 21... Qxa2+ {[%clk 0:01:46.3]} 22.
Kc1 {[%clk 0:01:27.2]} 22... Nd5 {[%clk 0:01:43.7]} 23. Kd2 {[%clk 0:01:19.7]}
23... Nhf6 {[%clk 0:01:17]} 24. Qd4 {[%clk 0:01:13.6]} 24... Ra4 {[%clk
0:01:07.6]} 25. Qd3 {[%clk 0:01:05.6]} 25... Qc4 {[%clk 0:00:40.2]} 26. Qxc4
{[%clk 0:00:57.3]} 26... Rxc4 {[%clk 0:00:41.1]} 27. Rhe1 {[%clk 0:00:52.6]}
27... Rh4 {[%clk 0:00:37.9]} 28. Kc1 {[%clk 0:00:48]} 28... b5 {[%clk
0:00:35.3]} 29. Rd4 {[%clk 0:00:47.5]} 29... Rh3 {[%clk 0:00:35]} 30. Bg3 {[%clk
0:00:46]} 30... h5 {[%clk 0:00:35.7]} 31. c4 {[%clk 0:00:43.7]} 31... bxc4
{[%clk 0:00:35.6]} 32. Rxc4 {[%clk 0:00:43.8]} 32... g5 {[%clk 0:00:36]} 33. Rd4
{[%clk 0:00:38.5]} 33... h4 {[%clk 0:00:36.2]} 34. Be5 {[%clk 0:00:36.9]} 34...
Rxf3 {[%clk 0:00:36.8]} 35. c4 {[%clk 0:00:36.8]} 35... Nb4 {[%clk 0:00:34.1]}
36. Kd2 {[%clk 0:00:35]} 36... Rxf2+ {[%clk 0:00:31.9]} 37. Re2 {[%clk
0:00:33.8]} 37... Rxe2+ {[%clk 0:00:29.9]} 38. Kxe2 {[%clk 0:00:33.7]} 38... Nc6
{[%clk 0:00:21.6]} 39. Bxf6 {[%clk 0:00:33]} 39... Kxf6 {[%clk 0:00:22.5]} 40.
Rxd7 {[%clk 0:00:32.4]} 40... Ne5 {[%clk 0:00:23]} 41. Rc7 {[%clk 0:00:31.3]}
41... g4 {[%clk 0:00:23.1]} 42. Ke3 {[%clk 0:00:31.5]} 42... g3 {[%clk 0:00:22]}
43. hxg3 {[%clk 0:00:31.5]} 43... hxg3 {[%clk 0:00:22.9]} 44. c5 {[%clk
0:00:31.1]} 44... Nd3 {[%clk 0:00:16.6]} 45. Kf3 {[%clk 0:00:29.2]} 45... Ke5
{[%clk 0:00:16.9]} 46. c6 {[%clk 0:00:28.4]} 46... Kd6 {[%clk 0:00:14.7]} 47.
Rc8 {[%clk 0:00:27.9]} 47... Ne5+ {[%clk 0:00:14.3]} 48. Kxg3 {[%clk 0:00:24.1]}
48... Nxc6 {[%clk 0:00:15.2]} 49. Kf4 {[%clk 0:00:22.1]} 49... Ne7 {[%clk
0:00:15.1]} 50. Re8 {[%clk 0:00:20.7]} 50... Nd5+ {[%clk 0:00:14.6]} 51. Kf3
{[%clk 0:00:19.5]} 51... Ke5 {[%clk 0:00:15.5]} 52. Ra8 {[%clk 0:00:18]} 52...
Kf5 {[%clk 0:00:15.7]} 53. Ra6 {[%clk 0:00:17.3]} 53... Ke5 {[%clk 0:00:16.1]}
54. Ke2 {[%clk 0:00:13.9]} 54... Kf5 {[%clk 0:00:15.2]} 55. Ra5 {[%clk
0:00:12.2]} 55... Ke4 {[%clk 0:00:15.2]} 56. Kd2 {[%clk 0:00:11.2]} 56... e5
{[%clk 0:00:14]} 57. Ra4+ {[%clk 0:00:09.9]} 57... Kf5 {[%clk 0:00:13.8]} 58.
Kd3 {[%clk 0:00:09.6]} 58... Nf4+ {[%clk 0:00:14]} 59. Ke3 {[%clk 0:00:09.4]}
59... Ne6 {[%clk 0:00:13.9]} 60. Ra5 {[%clk 0:00:08.7]} 60... Nd4 {[%clk
0:00:14.2]} 61. Rxe5+ {[%clk 0:00:06.8]} 61... Kxe5 {[%clk 0:00:15.1]} 1/2-1/2

[Event "Late-Titled-Tuesday-Blitz-June-04-2024"]
[Site "Chess.com"]
[Date "2024.06.04"]
[Round "3"]
[White "shimastream"]
[Black "Bryanl106"]
[Result "1-0"]
[WhiteElo "3005"]
[BlackElo "2722"]
[TimeControl "180+1"]
[EndTime "14:28:35 PDT"]
[Termination "shimastream won by resignation"]

1. e4 {[%clk 0:03:00.9]} 1... e5 {[%clk 0:02:57.7]} 2. f4 {[%clk 0:02:55.9]}
2... d5 {[%clk 0:02:50.9]} 3. exd5 {[%clk 0:02:54]} 3... exf4 {[%clk 0:02:49.1]}
4. Nf3 {[%clk 0:02:48.9]} 4... Nf6 {[%clk 0:02:46.8]} 5. Bb5+ {[%clk 0:02:40.7]}
5... c6 {[%clk 0:02:45.8]} 6. dxc6 {[%clk 0:02:40.3]} 6... Nxc6 {[%clk
0:02:45.1]} 7. Qe2+ {[%clk 0:02:37.4]} 7... Be7 {[%clk 0:02:45.1]} 8. O-O {[%clk
0:01:51.2]} 8... O-O {[%clk 0:02:39.3]} 9. Kh1 {[%clk 0:01:47.3]} 9... Bg4
{[%clk 0:02:36.6]} 10. Bxc6 {[%clk 0:01:41.7]} 10... bxc6 {[%clk 0:02:35.2]} 11.
d3 {[%clk 0:01:42.3]} 11... Bd6 {[%clk 0:02:31.3]} 12. Nc3 {[%clk 0:01:42.2]}
12... Re8 {[%clk 0:02:25.9]} 13. Qf2 {[%clk 0:01:42.2]} 13... h6 {[%clk
0:02:17.3]} 14. Bd2 {[%clk 0:01:41.4]} 14... Qb6 {[%clk 0:02:15.1]} 15. b3
{[%clk 0:01:37.5]} 15... Qxf2 {[%clk 0:02:15]} 16. Rxf2 {[%clk 0:01:37.8]} 16...
Bc5 {[%clk 0:02:12.1]} 17. Rff1 {[%clk 0:01:37.6]} 17... Be3 {[%clk 0:02:11.5]}
18. Bxe3 {[%clk 0:01:32.9]} 18... fxe3 {[%clk 0:02:12.4]} 19. Rae1 {[%clk
0:01:32.5]} 19... Rad8 {[%clk 0:02:04.9]} 20. h3 {[%clk 0:01:31.1]} 20... Bh5
{[%clk 0:02:02.9]} 21. g4 {[%clk 0:01:29.6]} 21... Bg6 {[%clk 0:02:03]} 22. Nh4
{[%clk 0:01:29.5]} 22... Bxd3 {[%clk 0:01:58.7]} 23. cxd3 {[%clk 0:01:28.8]}
23... Rxd3 {[%clk 0:01:59.6]} 24. Ne2 {[%clk 0:01:25.9]} 24... Rd2 {[%clk
0:01:38.4]} 25. Nf5 {[%clk 0:01:22.9]} 25... Nd5 {[%clk 0:01:26.6]} 26. Neg3
{[%clk 0:01:15.3]} 26... Rxa2 {[%clk 0:01:19.6]} 27. Re2 {[%clk 0:01:13.5]}
27... Ra3 {[%clk 0:01:10.3]} 28. Kg2 {[%clk 0:00:34.3]} 28... Rxb3 {[%clk
0:01:10.1]} 29. Kf3 {[%clk 0:00:34.5]} 29... g6 {[%clk 0:01:05.4]} 30. Nd6
{[%clk 0:00:30.1]} 30... Re6 {[%clk 0:01:04.2]} 31. Nde4 {[%clk 0:00:30.3]}
31... a5 {[%clk 0:00:47.4]} 32. Ra1 {[%clk 0:00:27.8]} 32... Rb5 {[%clk
0:00:44.4]} 33. Rc2 {[%clk 0:00:24.4]} 33... Kg7 {[%clk 0:00:33.4]} 34. Ne2
{[%clk 0:00:21.5]} 34... Rb4 {[%clk 0:00:30.3]} 35. Nc5 {[%clk 0:00:16.8]} 35...
Rf6+ {[%clk 0:00:29.2]} 36. Kg3 {[%clk 0:00:17.4]} 36... Rf2 {[%clk 0:00:26.7]}
37. Nd3 {[%clk 0:00:16.3]} 37... Nf4 {[%clk 0:00:11.9]} 38. Nxf2 {[%clk
0:00:13.1]} 38... Nxe2+ {[%clk 0:00:11.5]} 39. Rxe2 {[%clk 0:00:13.2]} 39...
exf2 {[%clk 0:00:12.4]} 40. Rxf2 {[%clk 0:00:13.2]} 40... a4 {[%clk 0:00:12.4]}
41. Rfa2 {[%clk 0:00:13.2]} 41... Rb3+ {[%clk 0:00:12]} 42. Kg2 {[%clk
0:00:13.6]} 42... c5 {[%clk 0:00:11.2]} 43. Rc1 {[%clk 0:00:12.8]} 43... a3
{[%clk 0:00:11]} 44. Rxc5 {[%clk 0:00:12.8]} 44... Rd3 {[%clk 0:00:08.1]} 45.
Ra5 {[%clk 0:00:12.7]} 45... h5 {[%clk 0:00:06.9]} 46. gxh5 {[%clk 0:00:12.5]}
46... gxh5 {[%clk 0:00:07.8]} 47. Rxh5 {[%clk 0:00:12.5]} 47... Kg6 {[%clk
0:00:07.8]} 48. Ra5 {[%clk 0:00:12.6]} 48... f5 {[%clk 0:00:08.5]} 49. R5xa3
{[%clk 0:00:12.7]} 49... Rd4 {[%clk 0:00:08.4]} 50. Kg3 {[%clk 0:00:12.1]} 50...
Kg5 {[%clk 0:00:08.4]} 51. Rf3 {[%clk 0:00:11.6]} 51... Rd1 {[%clk 0:00:05.9]}
52. h4+ {[%clk 0:00:11]} 52... Kh5 {[%clk 0:00:04.8]} 53. Rxf5+ {[%clk
0:00:10.8]} 53... Kg6 {[%clk 0:00:05.7]} 54. Rg5+ {[%clk 0:00:11.1]} 54... Kh6
{[%clk 0:00:06.6]} 55. Ra6+ {[%clk 0:00:11.2]} 55... Kh7 {[%clk 0:00:06.9]} 56.
Rb5 {[%clk 0:00:11.2]} 56... Ra1 {[%clk 0:00:05.3]} 57. Rb7+ {[%clk 0:00:05.6]}
57... Kh8 {[%clk 0:00:04.6]} 58. Rxa1 {[%clk 0:00:05.7]} 1-0

[Event "Late-Titled-Tuesday-Blitz-June-04-2024"]
[Site "Chess.com"]
[Date "2024.06.04"]
[Round "3"]
[White "only_strong_moves"]
[Black "jcibarra"]
[Result "0-1"]
[WhiteElo "2681"]
[BlackElo "2925"]
[TimeControl "180+1"]
[EndTime "14:28:35 PDT"]
[Termination "jcibarra won on time"]

1. Nc3 {[%clk 0:03:00.9]} 1... c5 {[%clk 0:02:57.4]} 2. Nf3 {[%clk 0:02:57.8]}
2... Nc6 {[%clk 0:02:55.9]} 3. d4 {[%clk 0:02:58.4]} 3... cxd4 {[%clk
0:02:54.2]} 4. Nxd4 {[%clk 0:02:59.3]} 4... Nf6 {[%clk 0:02:44.2]} 5. Bg5 {[%clk
0:02:59.2]} 5... e6 {[%clk 0:02:41]} 6. e3 {[%clk 0:02:35.3]} 6... Bb4 {[%clk
0:02:35.9]} 7. Nb5 {[%clk 0:02:30.5]} 7... d5 {[%clk 0:02:25.3]} 8. a3 {[%clk
0:02:30.1]} 8... Be7 {[%clk 0:02:22.8]} 9. Be2 {[%clk 0:02:24.4]} 9... O-O
{[%clk 0:02:22.3]} 10. O-O {[%clk 0:02:23.8]} 10... h6 {[%clk 0:02:18.7]} 11.
Bh4 {[%clk 0:02:23.6]} 11... a6 {[%clk 0:02:11.3]} 12. Nd4 {[%clk 0:02:23.4]}
12... e5 {[%clk 0:02:11.6]} 13. Nb3 {[%clk 0:02:14.6]} 13... Be6 {[%clk
0:02:10.9]} 14. Bxf6 {[%clk 0:02:13]} 14... Bxf6 {[%clk 0:02:10.8]} 15. Nc5
{[%clk 0:02:12.6]} 15... e4 {[%clk 0:01:56.6]} 16. Bg4 {[%clk 0:01:49]} 16...
Bxg4 {[%clk 0:01:38]} 17. Qxg4 {[%clk 0:01:49.9]} 17... Bxc3 {[%clk 0:01:24.7]}
18. bxc3 {[%clk 0:01:50.8]} 18... Qe7 {[%clk 0:01:22.2]} 19. Nb3 {[%clk
0:01:50.3]} 19... Rac8 {[%clk 0:01:20.8]} 20. Rad1 {[%clk 0:01:50]} 20... Ne5
{[%clk 0:01:16.6]} 21. Qf5 {[%clk 0:01:37.3]} 21... Qe6 {[%clk 0:00:54.6]} 22.
Qxe6 {[%clk 0:01:32]} 22... fxe6 {[%clk 0:00:54.1]} 23. Nd4 {[%clk 0:01:32.9]}
23... Rfe8 {[%clk 0:00:49.7]} 24. Rb1 {[%clk 0:01:31.7]} 24... Re7 {[%clk
0:00:42.6]} 25. Rb3 {[%clk 0:01:28.8]} 25... Nc4 {[%clk 0:00:38.6]} 26. Rd1
{[%clk 0:01:28.1]} 26... b5 {[%clk 0:00:36.2]} 27. Ne2 {[%clk 0:01:16.5]} 27...
Kf7 {[%clk 0:00:33.7]} 28. Ra1 {[%clk 0:01:13.6]} 28... Nb6 {[%clk 0:00:33.5]}
29. Rf1 {[%clk 0:01:11.4]} 29... Rec7 {[%clk 0:00:32.6]} 30. f3 {[%clk
0:01:11.5]} 30... exf3 {[%clk 0:00:33.2]} 31. Rxf3+ {[%clk 0:01:11.8]} 31... Ke7
{[%clk 0:00:33.8]} 32. Rg3 {[%clk 0:01:10.4]} 32... Kd6 {[%clk 0:00:33.4]} 33.
e4 {[%clk 0:01:03]} 33... dxe4 {[%clk 0:00:31]} 34. Re3 {[%clk 0:01:03.1]} 34...
Rc4 {[%clk 0:00:29.6]} 35. Ng3 {[%clk 0:01:01.3]} 35... Ke5 {[%clk 0:00:24.6]}
36. Ne2 {[%clk 0:00:35.2]} 36... Nd5 {[%clk 0:00:23.4]} 37. Rg3 {[%clk
0:00:35.5]} 37... g5 {[%clk 0:00:21.7]} 38. Rh3 {[%clk 0:00:35.8]} 38... Rh8
{[%clk 0:00:17.2]} 39. Rb1 {[%clk 0:00:36.4]} 39... h5 {[%clk 0:00:11.7]} 40.
Rg3 {[%clk 0:00:33.9]} 40... g4 {[%clk 0:00:11.6]} 41. h3 {[%clk 0:00:28.8]}
41... Rg8 {[%clk 0:00:12.2]} 42. Rd1 {[%clk 0:00:14.3]} 42... Ne7 {[%clk
0:00:10.4]} 43. hxg4 {[%clk 0:00:11.5]} 43... hxg4 {[%clk 0:00:10.3]} 44. Nd4
{[%clk 0:00:06.3]} 44... Nf5 {[%clk 0:00:08.5]} 45. Nxf5 {[%clk 0:00:06.8]}
45... exf5 {[%clk 0:00:08.9]} 46. Re3 {[%clk 0:00:07.4]} 46... Rgc8 {[%clk
0:00:07.6]} 47. Re2 {[%clk 0:00:04.6]} 47... Rxc3 {[%clk 0:00:07.6]} 48. Red2
{[%clk 0:00:05.5]} 48... R8c5 {[%clk 0:00:04.4]} 49. Rd8 {[%clk 0:00:06.2]}
49... Rxc2 {[%clk 0:00:04.6]} 50. Re8+ {[%clk 0:00:07.1]} 50... Kf4 {[%clk
0:00:03.8]} 51. Kh2 {[%clk 0:00:04.7]} 51... g3+ {[%clk 0:00:03.5]} 52. Kh3
{[%clk 0:00:05.2]} 52... Rc1 {[%clk 0:00:04.2]} 53. Rxc1 {[%clk 0:00:04.4]}
53... Rxc1 {[%clk 0:00:04.9]} 0-1

[Event "Late-Titled-Tuesday-Blitz-June-04-2024"]
[Site "Chess.com"]
[Date "2024.06.04"]
[Round "3"]
[White "cthake"]
[Black "gabduschew"]
[Result "0-1"]
[WhiteElo "1755"]
[BlackElo "2323"]
[TimeControl "180+1"]
[EndTime "14:28:37 PDT"]
[Termination "gabduschew won on time"]

1. e4 {[%clk 0:03:00.9]} 1... e5 {[%clk 0:01:59.6]} 2. Nf3 {[%clk 0:03:00.1]}
2... d5 {[%clk 0:01:59.6]} 3. exd5 {[%clk 0:02:57.1]} 3... e4 {[%clk 0:02:00.5]}
4. Ng1 {[%clk 0:02:45.3]} 4... Qxd5 {[%clk 0:01:59.3]} 5. d4 {[%clk 0:02:45.4]}
5... Nc6 {[%clk 0:01:41.8]} 6. Be3 {[%clk 0:02:43.9]} 6... Nf6 {[%clk
0:01:39.6]} 7. c4 {[%clk 0:02:43.2]} 7... Qf5 {[%clk 0:01:35.5]} 8. Ne2 {[%clk
0:02:39.7]} 8... Bd6 {[%clk 0:01:30.7]} 9. Nbc3 {[%clk 0:02:36.3]} 9... O-O
{[%clk 0:01:19]} 10. Ng3 {[%clk 0:02:36.1]} 10... Qg6 {[%clk 0:01:17.9]} 11. Be2
{[%clk 0:02:30.9]} 11... Bg4 {[%clk 0:01:12.5]} 12. O-O {[%clk 0:02:27.8]} 12...
h5 {[%clk 0:00:57.6]} 13. Bxg4 {[%clk 0:02:16.3]} 13... Nxg4 {[%clk 0:00:56.1]}
14. c5 {[%clk 0:01:54.6]} 14... Bxg3 {[%clk 0:00:51.1]} 15. hxg3 {[%clk
0:01:49.3]} 15... Rad8 {[%clk 0:00:46.3]} 16. d5 {[%clk 0:01:39.7]} 16... Nxe3
{[%clk 0:00:34.1]} 17. fxe3 {[%clk 0:01:37.8]} 17... Nb4 {[%clk 0:00:34.5]} 18.
Qb3 {[%clk 0:01:32.5]} 18... Nd3 {[%clk 0:00:32.3]} 19. Kh2 {[%clk 0:01:07.6]}
19... Nxc5 {[%clk 0:00:31.3]} 20. Qc4 {[%clk 0:01:05.5]} 20... b6 {[%clk
0:00:29.4]} 21. b4 {[%clk 0:01:05.2]} 21... Nd3 {[%clk 0:00:28.1]} 22. Nxe4
{[%clk 0:01:03.3]} 22... Ne5 {[%clk 0:00:20.5]} 23. Qd4 {[%clk 0:00:58.7]} 23...
Ng4+ {[%clk 0:00:20.4]} 24. Kg1 {[%clk 0:00:57.6]} 24... Rfe8 {[%clk 0:00:19.1]}
25. Rf4 {[%clk 0:00:55.7]} 25... f5 {[%clk 0:00:17.2]} 26. Nc3 {[%clk
0:00:39.7]} 26... Nxe3 {[%clk 0:00:17.1]} 27. Nb5 {[%clk 0:00:32.7]} 27... Qxg3
{[%clk 0:00:15.7]} 28. Rf2 {[%clk 0:00:31]} 28... Ng4 {[%clk 0:00:13.3]} 29. Rf3
{[%clk 0:00:28.7]} 29... Qh2+ {[%clk 0:00:13.2]} 30. Kf1 {[%clk 0:00:28.9]}
30... Qh1+ {[%clk 0:00:12.6]} 31. Qg1 {[%clk 0:00:28.1]} 31... Qxg1+ {[%clk
0:00:10.2]} 32. Kxg1 {[%clk 0:00:27.9]} 32... Rd7 {[%clk 0:00:07.9]} 33. Rxf5
{[%clk 0:00:26.7]} 33... Ne3 {[%clk 0:00:08.1]} 34. Rxh5 {[%clk 0:00:25.9]}
34... Nxd5 {[%clk 0:00:07.2]} 35. Nxa7 {[%clk 0:00:25]} 35... Nxb4 {[%clk
0:00:05.4]} 36. a3 {[%clk 0:00:22.5]} 36... Nd5 {[%clk 0:00:05.4]} 37. Rd1
{[%clk 0:00:21.7]} 37... Red8 {[%clk 0:00:04.4]} 38. Nc6 {[%clk 0:00:20.5]}
38... Rd6 {[%clk 0:00:04.9]} 39. Rhxd5 {[%clk 0:00:17.4]} 39... Rxd5 {[%clk
0:00:04.2]} 40. Ne7+ {[%clk 0:00:18.1]} 40... Kf7 {[%clk 0:00:03.5]} 41. Rxd5
{[%clk 0:00:15.1]} 41... Kxe7 {[%clk 0:00:03.3]} 42. Rg5 {[%clk 0:00:13.7]}
42... Kf6 {[%clk 0:00:03.5]} 43. Rg3 {[%clk 0:00:10.1]} 43... c5 {[%clk
0:00:03.1]} 44. Rb3 {[%clk 0:00:09.1]} 44... Rd6 {[%clk 0:00:02.6]} 45. a4
{[%clk 0:00:08.2]} 45... g5 {[%clk 0:00:02.4]} 46. g3 {[%clk 0:00:07.4]} 46...
Kf5 {[%clk 0:00:02.6]} 47. Kf2 {[%clk 0:00:07.3]} 47... g4 {[%clk 0:00:02.7]}
48. Ke3 {[%clk 0:00:07.2]} 48... Ke5 {[%clk 0:00:03.1]} 49. a5 {[%clk
0:00:04.1]} 49... bxa5 {[%clk 0:00:03.1]} 50. Rb5 {[%clk 0:00:04.2]} 50... Rc6
{[%clk 0:00:02.6]} 51. Rxa5 {[%clk 0:00:04.3]} 51... Kd5 {[%clk 0:00:01.7]} 52.
Kf4 {[%clk 0:00:04.1]} 52... Kd4 {[%clk 0:00:02.1]} 53. Kxg4 {[%clk 0:00:03]}
53... c4 {[%clk 0:00:02.8]} 0-1

[Event "Late-Titled-Tuesday-Blitz-June-04-2024"]
[Site "Chess.com"]
[Date "2024.06.04"]
[Round "3"]
[White "WindWhistler11"]
[Black "NovakRatko"]
[Result "1-0"]
[WhiteElo "2547"]
[BlackElo "2305"]
[TimeControl "180+1"]
[EndTime "14:28:45 PDT"]
[Termination "WindWhistler11 won on time"]

1. Nf3 {[%clk 0:03:00.7]} 1... d5 {[%clk 0:02:54.3]} 2. g3 {[%clk 0:03:00.9]}
2... c5 {[%clk 0:02:54.6]} 3. c4 {[%clk 0:03:01.1]} 3... d4 {[%clk 0:02:54.7]}
4. Bg2 {[%clk 0:03:00.3]} 4... Nc6 {[%clk 0:02:54.8]} 5. e3 {[%clk 0:03:00.8]}
5... e5 {[%clk 0:02:55]} 6. exd4 {[%clk 0:03:00.9]} 6... cxd4 {[%clk 0:02:55.8]}
7. d3 {[%clk 0:03:00.5]} 7... Bg4 {[%clk 0:02:52.3]} 8. O-O {[%clk 0:02:59.3]}
8... Qd7 {[%clk 0:02:51.1]} 9. Re1 {[%clk 0:02:58.9]} 9... Be7 {[%clk 0:02:49]}
10. Qc2 {[%clk 0:02:30.7]} 10... f6 {[%clk 0:02:46.3]} 11. a3 {[%clk 0:02:30.1]}
11... a5 {[%clk 0:02:46.3]} 12. Nbd2 {[%clk 0:02:29.3]} 12... Bd6 {[%clk
0:02:39.1]} 13. Rb1 {[%clk 0:02:22.5]} 13... Nge7 {[%clk 0:02:38.1]} 14. c5
{[%clk 0:02:22.3]} 14... Bc7 {[%clk 0:02:37.9]} 15. Nc4 {[%clk 0:02:14.6]} 15...
O-O {[%clk 0:02:32.3]} 16. b4 {[%clk 0:02:04]} 16... axb4 {[%clk 0:02:31.8]} 17.
axb4 {[%clk 0:02:04.9]} 17... Ng6 {[%clk 0:02:12.4]} 18. b5 {[%clk 0:02:01.1]}
18... Nce7 {[%clk 0:02:12.2]} 19. Bd2 {[%clk 0:01:50]} 19... Rab8 {[%clk
0:01:59.8]} 20. b6 {[%clk 0:01:44.6]} 20... Bd8 {[%clk 0:01:59.3]} 21. Nd6
{[%clk 0:01:44.6]} 21... Kh8 {[%clk 0:01:43.2]} 22. Rec1 {[%clk 0:01:13.5]}
22... Nc6 {[%clk 0:01:42.2]} 23. Ne1 {[%clk 0:01:12.2]} 23... Nge7 {[%clk
0:01:38.7]} 24. Qa4 {[%clk 0:01:11.5]} 24... Be6 {[%clk 0:01:07.6]} 25. Nc2
{[%clk 0:00:59.3]} 25... Bd5 {[%clk 0:01:05.1]} 26. Bf1 {[%clk 0:00:51]} 26...
Qg4 {[%clk 0:00:59.8]} 27. Ne1 {[%clk 0:00:44.5]} 27... h5 {[%clk 0:00:59.5]}
28. Qd1 {[%clk 0:00:35.2]} 28... Qg6 {[%clk 0:00:59]} 29. Be2 {[%clk 0:00:33.5]}
29... h4 {[%clk 0:00:56.2]} 30. Bh5 {[%clk 0:00:33.1]} 30... Qh7 {[%clk
0:00:55.4]} 31. Bf3 {[%clk 0:00:29.1]} 31... hxg3 {[%clk 0:00:49.8]} 32. hxg3
{[%clk 0:00:25.9]} 32... g5 {[%clk 0:00:42.5]} 33. Bxd5 {[%clk 0:00:25.5]} 33...
Nxd5 {[%clk 0:00:42.5]} 34. Qf3 {[%clk 0:00:26]} 34... Nde7 {[%clk 0:00:36.8]}
35. Nc2 {[%clk 0:00:26.1]} 35... Qg6 {[%clk 0:00:28.6]} 36. Kg2 {[%clk
0:00:26.2]} 36... g4 {[%clk 0:00:27.2]} 37. Rh1+ {[%clk 0:00:26.7]} 37... Kg7
{[%clk 0:00:22.2]} 38. Qe2 {[%clk 0:00:25.7]} 38... Rh8 {[%clk 0:00:19.6]} 39.
Rxh8 {[%clk 0:00:25.3]} 39... Kxh8 {[%clk 0:00:20.2]} 40. Rh1+ {[%clk
0:00:26.2]} 40... Kg8 {[%clk 0:00:20.8]} 41. Rh6 {[%clk 0:00:26.6]} 41... Qg7
{[%clk 0:00:20.9]} 42. Rh4 {[%clk 0:00:19.9]} 42... f5 {[%clk 0:00:19.8]} 43.
Nxf5 {[%clk 0:00:20.4]} 43... Nxf5 {[%clk 0:00:17.1]} 44. Rxg4 {[%clk
0:00:20.8]} 44... Bf6 {[%clk 0:00:16.3]} 45. Rxg7+ {[%clk 0:00:20.6]} 45... Nxg7
{[%clk 0:00:17.2]} 46. Qf3 {[%clk 0:00:19.8]} 46... Kf7 {[%clk 0:00:14.7]} 47.
Bg5 {[%clk 0:00:19.6]} 47... Ne8 {[%clk 0:00:13.3]} 48. Qh5+ {[%clk 0:00:19.8]}
48... Ke6 {[%clk 0:00:12.7]} 49. Qg4+ {[%clk 0:00:19.1]} 49... Kf7 {[%clk
0:00:12.6]} 50. Qd7+ {[%clk 0:00:18.7]} 50... Ne7 {[%clk 0:00:12.8]} 51. Bd2
{[%clk 0:00:12.4]} 51... Rc8 {[%clk 0:00:11.8]} 52. Qxb7 {[%clk 0:00:10.3]}
52... Rxc5 {[%clk 0:00:12]} 53. Nb4 {[%clk 0:00:10.6]} 53... Rb5 {[%clk
0:00:12.2]} 54. Qa6 {[%clk 0:00:09.6]} 54... Rc5 {[%clk 0:00:11.1]} 55. b7
{[%clk 0:00:10]} 1-0